[Event "50th-ITA-ch-Teams-2018"]
[Site "Gallipoli"]
[Date "2018.04.28"]
[Round "2"]
[White "Garcia Palermo, Carlos"]
[Black "Borgo, Giulio"]
[Result "1-0"]
[ECO "A04"]
[WhiteElo "2404"]
[BlackElo "2397"]
[Annotator "RC"]
[PlyCount "47"]
[EventDate "2018.??.??"]
[EventType "team-tourn"]
[EventCountry "ITA"]
[SourceTitle "playchess.com"]
[Source "ChessBase"]
[SourceQuality "1"]
[TimeControl "40/5400+30:900+30"]

1. Nf3 {[%emt 0:00:21]} c5 {[%emt 0:01:43]} 2. b3 {[%emt 0:01:06]} b6 {[%emt 0:05:53]} 3. g3 {[%emt 0:02:13]} Bb7 {[%emt 0:01:08]} 4. Bg2 {[%emt 0:00:06]} e5 {[%emt 0:02:46]} 5. d3 {[%emt 0:08:06]} g6 {[%emt 0:04:13]} 6. Bb2 {[%emt 0:01:35]} Bg7 {[%emt 0:03:06]} 7. h4 {[%emt 0:14:49]} Ne7 {[%emt 0:16:56]} 8. h5 {[%emt 0:02:10]} O-O {[%emt 0:00:43]} 9. e4 {[%emt 0:00:34]} Nbc6 {[%emt 0:03:51]} 10. Nbd2 {[%emt 0:03:33]} d5 {[%emt 0:10:54]} 11. hxg6 {[%emt 0:05:26]} hxg6 {[%emt 0:01:02]} 12. Ng5 {[%emt 0:01:25]} Bc8 {[%emt 0:35:30]} 13. Nh7 {[%emt 0:22:40]} Re8 {[%emt 0:00:51]} 14. Qf3 {[%emt 0:00:07]} f5 {[%emt 0:01:47]} 15. O-O-O {[%emt 0:00:09]} Nd4 {[%emt 0:04:53]} 16. Bxd4 {[%emt 0:00:50]} cxd4 {[%emt 0:00:22]} 17. exf5 {[%emt 0:00:38]} gxf5 {[%emt 0:00:32]} 18. Ng5 {[%emt 0:00:55]} Rf8 {[%emt 0:02:08]} 19. Rh7 {[%emt 0:20:33]} f4 {[%emt 0:01:02]} 20. Qh5 {[%emt 0:01:10]} Bf5 {[%emt 0:00:29]} 21. Rh1 {[%emt 0:00:10]} Ng6 {[%emt 0:00:38]} 22. g4 {[%emt 0:00:48]} f3 {[%emt 0:00:42]} 23. gxf5 {[%emt 0:00:26]} Rxf5 {[%emt 0:00:29]} 24. Qxg6 {[%emt 0:00:26]} 1-0

[Event "50th-ITA-ch-Teams-2018"]
[Site "Gallipoli"]
[Date "2018.04.28"]
[Round "2"]
[White "Collutiis, Duilio"]
[Black "Forato, Enrico"]
[Result "1-0"]
[ECO "A14"]
[WhiteElo "2387"]
[BlackElo "2145"]
[Annotator "NA RC"]
[PlyCount "101"]
[EventDate "2018.??.??"]
[EventType "team-tourn"]
[EventCountry "ITA"]
[SourceTitle "playchess.com"]
[Source "ChessBase"]
[SourceQuality "1"]
[TimeControl "40/5400+30:900+30"]

{[%evp 8,100,6,2,13,6,8,10,13,-10,0,2,21,16,38,32767,24,32767,7,0,16,0,40,61,53,69,55,32,39,45,32767,32767,62,47,99,26,44,41,58,30,18,0,0,0,0,32767,32767,55,290,54,40,32767,60,29,32767,29,43,32767,32767,32767,32767,32767,32767,32767,32767,32767,32767,32767,32767,32767,32767,32767,32767,32767,0,32767,0,32767,276,314,980,32767,1005,1082,1214,32767,32767,965,32767,29985,29985,32767,32767,29986,29986]} 1. c4 {[%emt 0:00:03]} e6 {[%emt 0:10:28]} 2. g3 {[%emt 0:01:04]} Nf6 {[%emt 0:01:18]} 3. Nf3 {[%emt 0:00:30]} d5 {[%emt 0:01:29]} 4. b3 {[%emt 0:00:15]} b6 {[%emt 0:09:09]} 5. Bg2 {[%emt 0:01:26]} Be7 {[%emt 0:00:49]} 6. O-O {[%emt 0:00:44]} O-O {[%emt 0:00:05]} 7. Bb2 {[%emt 0:00:12]} Bb7 {[%emt 0:01:12]} 8. e3 {[%emt 0:00:28]} c5 {[%emt 0:04:07]} 9. Nc3 {[%emt 0:09:26]} Nc6 {[%emt 0:02:17]} 10. cxd5 {[%emt 0:03:00]} Nxd5 {[%emt 0:21:20]} 11. Nxd5 {[%emt 0:00:09]} Qxd5 {[%emt 0:10:07]} 12. d4 {[%emt 0:01:48]} Nb4 {[%emt 0:12:58] LiveBook: 10 Games A14: English Opening: 1...e6 with b3 by White} (12... Qf5 13. Ne5 Nxe5 14. Bxb7 Rad8 15. Qe2 Qd3 16. Rae1 Qxe2 17. Rxe2 Nd3 18. Ba1 cxd4 19. Bxd4 Bf6 20. Bxf6 gxf6 {1-0 (99) So,W (2788)-Dominguez Perez,L (2739) Saint Louis 2017}) 13. a3 {[%emt 0:10:03]} Na6 {[%emt 0:00:59]} 14. e4 {[%emt 0:01:03]} Qd6 $146 {[%emt 0:04:15]} ({Predecessor:} 14... Qh5 15. Re1 Rfd8 16. d5 Nc7 17. Nd2 Qg6 18. Be5 Rac8 19. Bxc7 Rxc7 20. Nc4 {½-½ (57) Raijmaekers,R (2480)-Aykent,S (2135) ICCF email 2011}) 15. Qe2 {[%emt 0:00:49]} Rac8 {[%emt 0:02:13]} 16. Rfd1 {[%emt 0:02:29]} Rfd8 {[%emt 0:04:27]} 17. d5 {[%emt 0:20:05]} exd5 {[%emt 0:00:11]} 18. exd5 {[%emt 0:00:02]} Bf6 {[%emt 0:01:11]} 19. Ne5 {[%emt 0:00:12]} Re8 {[%emt 0:03:05]} 20. f4 {[%emt 0:00:06]} Nc7 {[%emt 0:01:32]} 21. Qd2 {[%emt 0:01:20]} (21. Rd2 $16) 21... Nb5 {[%emt 0:03:10]} 22. Re1 {[%emt 0:11:25]} Rcd8 {[%emt 0:01:07]} 23. Nc4 {[%emt 0:00:33]} Qd7 {[%emt 0:00:33]} 24. Bxf6 {[%emt 0:00:20]} gxf6 {[%emt 0:00:02]} 25. Ne3 {[%emt 0:01:19]} Nd4 {[%emt 0:00:24]} 26. Rab1 {[%emt 0:01:26]} Ba8 {[%emt 0:02:11]} 27. b4 {[%emt 0:00:14]} Qa4 $2 {[%emt 0:00:12] [#]} (27... h6 $14) 28. bxc5 $2 {[%emt 0:00:25]} (28. Ng4 $1 $18) 28... bxc5 {[%emt 0:00:01]} 29. Qc3 {[%emt 0:01:11]} Rc8 {[%emt 0:01:28]} 30. Kf2 {[%emt 0:00:35]} Qd7 {[%emt 0:00:54]} 31. Qd3 {[%emt 0:01:46]} Rb8 {[%emt 0:00:30]} 32. Qa6 {[%emt 0:04:21]} Kg7 {[%emt 0:00:48]} 33. Qc4 {[%emt 0:00:59]} Qc7 {[%emt 0:01:55]} 34. Red1 {[%emt 0:03:38]} Qa5 {[%emt 0:00:29]} 35. Qd3 {[%emt 0:02:38]} Qa4 {[%emt 0:00:21]} 36. Rdc1 {[%emt 0:01:41]} Rxb1 {[%emt 0:00:50]} 37. Rxb1 {[%emt 0:00:30]} Qa5 {[%emt 0:00:08]} 38. Rc1 {[%emt 0:06:49]} Rb8 {[%emt 0:00:25]} 39. Nc4 {[%emt 0:01:05]} Qa4 {[%emt 0:00:42]} 40. Qd1 {[%emt 0:01:41]} Qd7 {[%emt 0:00:47]} 41. Qh5 {[%emt 0:00:43]} Re8 {[%emt 0:04:03]} 42. Ne3 {[%emt 0:05:36]} Qa4 $2 {[%emt 0:08:42]} (42... Qb7 $11 {and Black has nothing to worry.} 43. Re1 Qb2+ 44. Kg1 Kg8) 43. Ng4 {[%emt 0:04:00]} Re2+ $2 {[%emt 0:03:24]} (43... Nf5 44. Qxf5 Qd4+ 45. Kf1 Bb7) 44. Kf1 {[%emt 0:01:59]} Kf8 {[%emt 0:00:17]} 45. Qh6+ {[%emt 0:00:06]} Ke8 {[%emt 0:00:34]} 46. Nxf6+ {[%emt 0:00:10]} Ke7 {[%emt 0:00:21] [#]} 47. d6+ $18 {[%emt 0:01:04]} Kxd6 {[%emt 0:01:03]} 48. Ne4+ {[%emt 0:00:24]} Kc7 {[%emt 0:00:47]} 49. Qd6+ {[%emt 0:00:14]} Kc8 {[%emt 0:00:02]} 50. Bh3+ {[%emt 0:02:27]} f5 {[%emt 0:00:02]} 51. Bxf5+ {[%emt 0:00:06]} 1-0

[Event "50th-ITA-ch-Teams-2018"]
[Site "Gallipoli"]
[Date "2018.04.28"]
[Round "2"]
[White "Zamengo, Fulvio"]
[Black "Signorelli, Gaetano"]
[Result "1-0"]
[ECO "B32"]
[WhiteElo "2324"]
[BlackElo "2222"]
[Annotator "NA RC"]
[PlyCount "71"]
[EventDate "2018.??.??"]
[EventType "team-tourn"]
[EventCountry "ITA"]
[SourceTitle "playchess.com"]
[Source "ChessBase"]
[SourceQuality "1"]
[TimeControl "40/5400+30:900+30"]

{[%evp 8,67,29,36,12,19,25,25,34,32767,32767,32767,32767,28,29,30,41,33,20,0,20,0,0,-18,-8,14,28,-33,-20,0,28,32767,32767,32767,109,32767,32767,32767,32767,157,201,32767,32767,161,32767,32767,32767,32767,32767,32767,32767,32767,418,503,32767,32767,32767,32767,32767,32767,489,471]} 1. e4 {[%emt 0:04:20]} c5 {[%emt 0:00:09]} 2. Nf3 {[%emt 0:00:53]} Nc6 {[%emt 0:00:09]} 3. d4 {[%emt 0:01:08]} cxd4 {[%emt 0:00:09]} 4. Nxd4 {[%emt 0:00:07]} e5 {[%emt 0:00:11]} 5. Nb5 {[%emt 0:01:31]} d6 {[%emt 0:00:14]} 6. N1c3 {[%emt 0:03:16]} a6 {[%emt 0:00:29]} 7. Na3 {[%emt 0:00:08]} Be7 {[%emt 0:00:23]} 8. Nc4 {[%emt 0:05:10]} b5 {[%emt 0:00:52] B32: Sicilian: Löwenthal and Kalashnikov Variations} 9. Ne3 {[%emt 0:00:07]} Nf6 {[%emt 0:00:18]} 10. Bd3 {[%emt 0:07:33]} (10. g3 O-O 11. Bg2 b4 12. Ncd5 Nxd5 13. Nxd5 Bg5 14. Bxg5 Qxg5 15. O-O Be6 16. Nc7 {½-½ (34) Morozevich,A (2711)-Moiseenko,A (2692) Berlin 2015}) 10... O-O {[%emt 0:00:28]} 11. O-O {[%emt 0:00:08]} Rb8 {[%emt 0:01:45]} 12. a4 {[%emt 0:09:16] LiveBook: 7 Games} Nb4 {[%emt 0:04:24]} 13. Be2 {[%emt 0:05:24]} Be6 {[%emt 0:14:52]} 14. Ncd5 {[%emt 0:24:02]} Nbxd5 {[%emt 0:11:08]} 15. exd5 {[%emt 0:00:23]} Bd7 {[%emt 0:02:22]} 16. c4 {[%emt 0:05:08] [#]} bxa4 $146 {[%emt 0:18:16] [#]} 17. Bd3 {[%emt 0:07:56]} (17. c5 $1 $14 {[%mdl 512]}) 17... Rb4 {[%emt 0:07:37]} 18. Bc2 {[%emt 0:07:52]} Qb8 {[%emt 0:12:30]} 19. Bxa4 {[%emt 0:04:55]} Qb7 {[%emt 0:03:23]} 20. Bc2 {[%emt 0:00:35]} Rc8 {[%emt 0:01:07]} (20... Qc8 $14) 21. b3 {[%emt 0:00:22]} g6 {[%emt 0:01:15]} 22. Bd2 {[%emt 0:03:48]} Rb6 {[%emt 0:00:14]} 23. Ba5 {[%emt 0:02:38]} Nh5 {[%emt 0:01:43]} 24. g3 {[%emt 0:02:17]} Bh3 {[%emt 0:01:07]} 25. Re1 {[%emt 0:00:44]} f5 {[%emt 0:01:01]} 26. Bxb6 {[%emt 0:00:36]} Qxb6 {[%emt 0:00:15]} 27. Bxf5 {[%emt 0:00:09]} Bxf5 {[%emt 0:01:15]} 28. Nxf5 {[%emt 0:00:06]} Bf6 {[%emt 0:05:35]} 29. Qg4 {[%emt 0:00:20]} Rf8 {[%emt 0:00:33]} 30. Ne3 {[%emt 0:00:25]} Ng7 {[%emt 0:00:43]} 31. Kg2 {[%emt 0:00:53]} Kh8 {[%emt 0:02:26]} 32. Ra3 {[%emt 0:01:19]} a5 {[%emt 0:02:01]} 33. Rea1 {[%emt 0:00:11]} e4 {[%emt 0:01:17]} 34. R1a2 $18 {[%emt 0:00:50]} Bd4 {[%emt 0:00:57]} 35. Qxe4 {[%emt 0:00:46]} Re8 {[%emt 0:00:10]} 36. Qf3 {[%emt 0:00:05]} 1-0

[Event "50th-ITA-ch-Teams-2018"]
[Site "Gallipoli"]
[Date "2018.04.28"]
[Round "2"]
[White "Corvi, Marco"]
[Black "Pitzanti, Matteo"]
[Result "0-1"]
[ECO "C68"]
[WhiteElo "2307"]
[BlackElo "2213"]
[Annotator "NA RC"]
[PlyCount "57"]
[EventDate "2018.??.??"]
[EventType "team-tourn"]
[EventCountry "ITA"]
[SourceTitle "playchess.com"]
[Source "ChessBase"]
[SourceQuality "1"]
[TimeControl "40/5400+30:900+30"]

{[%evp 8,57,25,6,19,6,30,-10,-12,-26,-16,-17,-14,-18,12,-4,0,-137,32767,-155,-130,-133,-136,-137,-125,-135,-128,32767,-134,32767,-117,-156,-172,32767,-193,-195,-197,-169,32767,32767,-206,-195,32767,32767,32767,32767,32767,32767,32767,32767,32767,-29981]} 1. e4 {[%emt 0:23:45]} e5 {[%emt 0:05:37]} 2. Nf3 {[%emt 0:00:12]} Nc6 {[%emt 0:00:11]} 3. Bb5 {[%emt 0:00:09]} a6 {[%emt 0:00:07]} 4. Bxc6 {[%emt 0:00:10]} dxc6 {[%emt 0:00:07]} 5. O-O {[%emt 0:00:14]} Bg4 {[%emt 0:00:06]} 6. h3 {[%emt 0:00:36]} h5 {[%emt 0:00:08]} 7. d3 {[%emt 0:01:26]} ({Much weaker is} 7. hxg4 hxg4 8. g3 gxf3 $17) 7... Qf6 {[%emt 0:03:45]} 8. Nbd2 {[%emt 0:25:35]} Ne7 {[%emt 0:00:08]} 9. Re1 {[%emt 0:00:51]} Ng6 {[%emt 0:03:01]} 10. d4 {[%emt 0:20:31] Nf} Nf4 {[%emt 0:13:40] LiveBook: 113 Games} 11. hxg4 {[%emt 0:13:07]} hxg4 {[%emt 0:00:12]} 12. Nf1 {[%emt 0:09:31] C68: Ruy Lopez: Exchange Variation, sidelines} (12. g3 $1 $11 {keeps the balance.} gxf3 13. Qxf3 Ne6 14. dxe5 Qxe5 15. Nb3 Bd6 16. Kg2 O-O-O 17. Bd2 Kb8 18. Bc3 Qg5 19. e5 Be7 {0-1 (70) Guseinov,G (2631)-Sargissian,G (2671) Khanty-Mansiysk 2013}) 12... gxf3 {[%emt 0:20:07]} 13. Bxf4 {[%emt 0:01:51]} Qxf4 {[%emt 0:15:24]} ({But not} 13... exf4 14. Qxf3 Be7 15. c3 $17) 14. Qxf3 {[%emt 0:00:08]} Qxf3 {[%emt 0:01:12]} 15. gxf3 {[%emt 0:00:02]} exd4 {[%emt 0:00:12]} 16. Kg2 $146 {[%emt 0:00:21]} ({Predecessor:} 16. f4 Rh4 17. f5 Bb4 18. Re2 f6 19. Kg2 O-O-O {0-1 (34) Malisauskas,V (2489)-Grover,S (2242) Reykjavik 2008}) 16... O-O-O {[%emt 0:06:09]} 17. f4 {[%emt 0:00:55]} Rh4 {[%emt 0:02:34]} 18. Kf3 {[%emt 0:01:11]} g6 {[%emt 0:02:49]} 19. Ng3 {[%emt 0:00:18]} Bh6 {[%emt 0:01:21]} 20. f5 {[%emt 0:00:09]} d3 {[%emt 0:02:13]} 21. cxd3 {[%emt 0:00:39]} Rxd3+ {[%emt 0:00:02]} 22. Kg2 {[%emt 0:01:22]} Bf4 {[%emt 0:04:53]} 23. Rad1 {[%emt 0:10:22]} Rxd1 {[%emt 0:03:43]} 24. Rxd1 {[%emt 0:00:02]} Bxg3 {[%emt 0:00:57]} 25. Kxg3 {[%emt 0:00:14]} Rxe4 {[%emt 0:00:06]} 26. fxg6 {[%emt 0:00:41]} fxg6 {[%emt 0:00:02]} 27. Rd2 {[%emt 0:04:05]} c5 {[%emt 0:03:46]} 28. f4 {[%emt 0:04:19]} Rd4 {[%emt 0:05:52]} 29. Kg4 {[%emt 0:04:05]} (29. Rg2 $19) 0-1

[Event "50th-ITA-ch-Teams-2018"]
[Site "Gallipoli"]
[Date "2018.04.28"]
[Round "2"]
[White "Stromboli, Carlo"]
[Black "Gigovski, Gjoko"]
[Result "0-1"]
[ECO "B18"]
[WhiteElo "2306"]
[BlackElo "2102"]
[Annotator "NA RC"]
[PlyCount "122"]
[EventDate "2018.??.??"]
[EventType "team-tourn"]
[EventCountry "ITA"]
[SourceTitle "playchess.com"]
[Source "ChessBase"]
[SourceQuality "1"]
[TimeControl "40/5400+30:900+30"]

1. e4 {[%emt 0:01:02]} c6 {[%emt 0:00:13]} 2. d4 {[%emt 0:01:00]} d5 {[%emt 0:00:10]} 3. Nc3 {[%emt 0:04:38]} dxe4 {[%emt 0:00:09]} 4. Nxe4 {[%emt 0:00:23]} Bf5 {[%emt 0:00:09]} 5. Ng3 {[%emt 0:01:01]} Bg6 {[%emt 0:00:09]} 6. N1e2 {[%emt 0:02:56]} Nd7 {[%emt 0:00:07] LiveBook: 24 Games} 7. h4 {[%emt 0:03:37] B18: Classical Caro-Kann: 4...Bf5 sidelines} Ngf6 {[%emt 0:23:43]} (7... h6 8. Nf4 Bh7 9. Bc4 e5 10. Qe2 Bd6 11. Ngh5 Kf8 12. dxe5 Nxe5 13. Be3 Qa5+ 14. Bd2 Qc5 {1-0 (61) Asis Gargatagli,H (2499)-Anton Guijarro,D (2628) Barcelona 2016}) 8. h5 {[%emt 0:35:39]} Be4 {[%emt 0:03:07]} 9. Nc3 $146 {[%emt 0:07:18]} ({Predecessor:} 9. Nxe4 Nxe4 10. Qd3 Ndf6 11. f3 Nd6 12. Bd2 e6 13. O-O-O Qc7 14. Kb1 O-O-O {1-0 (31) Llaneza Vega,M (2293)-Rodriguez Cuende,M (1929) Oviedo 2005}) 9... Bd5 {[%emt 0:00:18]} 10. Nxd5 {[%emt 0:03:43]} cxd5 {[%emt 0:00:21]} 11. Bd3 {[%emt 0:01:06]} Qc7 {[%emt 0:06:00]} 12. Qe2 {[%emt 0:03:38]} e6 {[%emt 0:06:24]} 13. Bd2 {[%emt 0:07:50]} Be7 {[%emt 0:05:22]} 14. O-O-O {[%emt 0:05:33]} O-O-O {[%emt 0:12:24]} (14... h6 $11 {remains equal.}) 15. Kb1 {[%emt 0:05:55]} Nb6 {[%emt 0:02:35]} 16. Qf3 {[%emt 0:01:29]} h6 {[%emt 0:02:11]} 17. Rhe1 {[%emt 0:01:52]} Bd6 {[%emt 0:01:45]} 18. Ne2 {[%emt 0:03:09]} Nc4 {[%emt 0:01:00]} 19. Bf4 {[%emt 0:03:32]} Bxf4 {[%emt 0:01:59]} 20. Nxf4 {[%emt 0:00:44]} Rd6 {[%emt 0:01:53]} 21. Qg3 {[%emt 0:03:17]} Rg8 {[%emt 0:00:21]} 22. Bxc4 {[%emt 0:00:43]} dxc4 {[%emt 0:00:18]} 23. c3 {[%emt 0:01:00]} Ra6 {[%emt 0:04:02]} 24. Re5 {[%emt 0:00:04]} Nd7 {[%emt 0:02:24]} 25. Rb5 {[%emt 0:00:48]} Qc6 {[%emt 0:01:28]} 26. Rb4 {[%emt 0:00:15]} Ra5 {[%emt 0:01:12]} 27. Qe3 {[%emt 0:00:52]} Rf5 {[%emt 0:02:58]} 28. d5 {[%emt 0:00:29]} exd5 {[%emt 0:00:55]} 29. g4 {[%emt 0:00:13]} Rxf4 {[%emt 0:01:02]} 30. Qxf4 {[%emt 0:00:12]} a5 {[%emt 0:00:06]} 31. Qxf7 {[%emt 0:01:14]} Rf8 {[%emt 0:00:36]} 32. Qxd5 {[%emt 0:00:27]} Qxd5 {[%emt 0:00:48]} 33. Rxd5 {[%emt 0:00:03]} axb4 {[%emt 0:00:12]} 34. cxb4 {[%emt 0:00:09]} Rxf2 {[%emt 0:01:09]} 35. g5 {[%emt 0:00:10]} Kc7 {[%emt 0:02:22]} 36. gxh6 {[%emt 0:01:13]} gxh6 {[%emt 0:00:11]} 37. a4 {[%emt 0:00:18]} Kc6 {[%emt 0:02:17]} 38. Ra5 {[%emt 0:00:21]} b6 {[%emt 0:02:01]} 39. Ra8 {[%emt 0:00:12]} Rf5 {[%emt 0:00:54]} 40. Rc8+ {[%emt 0:00:47]} Kd5 {[%emt 0:03:04]} 41. Rc7 {[%emt 0:03:42]} Ne5 {[%emt 0:01:35]} 42. a5 {[%emt 0:00:36]} bxa5 {[%emt 0:00:43]} 43. bxa5 {[%emt 0:00:14]} Nc6 {[%emt 0:00:32]} 44. Rh7 {[%emt 0:01:12]} Rxh5 {[%emt 0:01:17]} 45. Rb7 {[%emt 0:02:06]} Kc5 {[%emt 0:01:13]} 46. Kc2 {[%emt 0:02:55]} Nxa5 {[%emt 0:00:45]} 47. Rb8 {[%emt 0:00:04]} Rh2+ {[%emt 0:01:00]} 48. Kc3 {[%emt 0:00:10]} Rh3+ {[%emt 0:00:05]} 49. Kc2 {[%emt 0:00:05]} h5 {[%emt 0:00:33]} 50. Kb1 {[%emt 0:00:42]} h4 {[%emt 0:00:35]} 51. Rc8+ {[%emt 0:00:23]} Nc6 {[%emt 0:00:07]} 52. Kc2 {[%emt 0:00:13]} Rg3 {[%emt 0:00:21]} 53. Kd2 {[%emt 0:00:08]} h3 {[%emt 0:00:11]} 54. Rh8 {[%emt 0:00:11]} Rb3 {[%emt 0:00:07]} 55. Kc1 {[%emt 0:00:59]} Rd3 {[%emt 0:00:14]} 56. Rh7 {[%emt 0:00:24]} Rg3 {[%emt 0:01:15]} 57. Kd2 {[%emt 0:00:08]} Nb4 {[%emt 0:01:41]} 58. Rc7+ {[%emt 0:00:25]} Kd4 {[%emt 0:00:12]} 59. Rh7 {[%emt 0:00:20]} Rg2+ {[%emt 0:00:16]} 60. Kd1 {[%emt 0:00:18]} h2 {[%emt 0:00:10]} 61. Rxh2 {[%emt 0:00:08]} Rxh2 {[%emt 0:01:59]} 0-1

[Event "50th-ITA-ch-Teams-2018"]
[Site "Gallipoli"]
[Date "2018.04.28"]
[Round "2"]
[White "Gregori, Giacomo"]
[Black "Piscopo, Pierluigi"]
[Result "1/2-1/2"]
[ECO "A28"]
[WhiteElo "2282"]
[BlackElo "2406"]
[Annotator "RC"]
[PlyCount "60"]
[EventDate "2018.??.??"]
[EventType "team-tourn"]
[EventCountry "ITA"]
[SourceTitle "playchess.com"]
[Source "ChessBase"]
[SourceQuality "1"]
[TimeControl "40/5400+30:900+30"]

1. c4 {[%emt 0:00:03]} e5 {[%emt 0:00:15]} 2. Nc3 {[%emt 0:00:09]} Nc6 {[%emt 0:00:31]} 3. Nf3 {[%emt 0:00:09]} Nf6 {[%emt 0:03:10]} 4. e3 {[%emt 0:01:08]} Bb4 {[%emt 0:07:46]} 5. Nd5 {[%emt 0:00:49]} Be7 {[%emt 0:03:42]} 6. Qc2 {[%emt 0:03:49]} h6 {[%emt 0:10:37]} 7. a3 {[%emt 0:01:18]} O-O {[%emt 0:00:48]} 8. Bd3 {[%emt 0:06:52]} Re8 {[%emt 0:00:40]} 9. b4 {[%emt 0:09:04]} b5 {[%emt 0:23:40]} 10. cxb5 {[%emt 0:18:31]} Nxd5 {[%emt 0:04:46]} 11. bxc6 {[%emt 0:01:31]} dxc6 {[%emt 0:11:56]} 12. Bb2 {[%emt 0:13:18]} Bf6 {[%emt 0:07:34]} 13. Bh7+ {[%emt 0:07:28]} Kh8 {[%emt 0:00:16]} 14. Be4 {[%emt 0:00:19]} Bb7 {[%emt 0:03:32]} 15. O-O {[%emt 0:02:53]} a5 {[%emt 0:00:04]} 16. bxa5 {[%emt 0:15:07]} Rxa5 {[%emt 0:00:11]} 17. Rfb1 {[%emt 0:00:22]} Qa8 {[%emt 0:01:57]} 18. Bxd5 {[%emt 0:00:53]} Rxd5 {[%emt 0:02:11]} 19. Bc3 {[%emt 0:02:21]} Ba6 {[%emt 0:05:30]} 20. Ne1 {[%emt 0:02:15]} Qc8 {[%emt 0:01:02]} 21. Qa4 {[%emt 0:02:34]} Bb5 {[%emt 0:00:19]} 22. Qe4 {[%emt 0:00:11]} Qe6 {[%emt 0:02:02]} 23. a4 {[%emt 0:00:51]} Ba6 {[%emt 0:00:04]} 24. Rb2 {[%emt 0:02:11]} Rdd8 {[%emt 0:00:49]} 25. Rab1 {[%emt 0:03:04]} Ra8 {[%emt 0:01:45]} 26. a5 {[%emt 0:00:51]} Red8 {[%emt 0:00:39]} 27. Rc1 {[%emt 0:01:32]} Rd5 {[%emt 0:03:26]} 28. Rcb1 {[%emt 0:01:01]} Rdd8 {[%emt 0:00:15]} 29. Rc1 {[%emt 0:00:08]} Rd5 {[%emt 0:00:32]} 30. Rcb1 {[%emt 0:00:15]} Rdd8 {[%emt 0:01:30]} 1/2-1/2

[Event "50th-ITA-ch-Teams-2018"]
[Site "Gallipoli"]
[Date "2018.04.28"]
[Round "2"]
[White "Carbone, Stefano"]
[Black "Loiacono, Leonardo"]
[Result "1/2-1/2"]
[ECO "D02"]
[WhiteElo "2101"]
[BlackElo "2266"]
[Annotator "NA RC"]
[PlyCount "89"]
[EventDate "2018.??.??"]
[EventType "team-tourn"]
[EventCountry "ITA"]
[SourceTitle "playchess.com"]
[Source "ChessBase"]
[SourceQuality "1"]
[TimeControl "40/5400+30:900+30"]

{[%evp 8,83,11,18,50,31,47,17,55,71,82,87,75,15,14,0,32767,32767,32767,32767,92,88,136,100,126,15,14,-24,-3,-2,-2,-13,-8,-12,0,-1,-5,0,0,0,0,-2,-4,-19,0,0,0,-6,0,-23,32767,-8,-8,32767,-8,-8,-8,32767,-37,32767,32767,32767,32767,-58,-20,32767,32767,32767,0,0,32767,32767,32767,32767,32767,32767,32767,0]} 1. Nf3 {[%emt 0:00:03]} Nf6 {[%emt 0:11:09]} 2. g3 {[%emt 0:00:27]} d5 {[%emt 0:00:40]} 3. Bg2 {[%emt 0:00:06]} c5 {[%emt 0:00:11]} 4. O-O {[%emt 0:00:09]} Nc6 {[%emt 0:00:10]} 5. d4 {[%emt 0:00:07]} Bf5 {[%emt 0:06:55]} 6. c4 {[%emt 0:04:15]} dxc4 {[%emt 0:05:04] D02: 1 d4 d5 2 Nf3 sidelines, including 2...Nf6 3 g3 and 2...Nf6 3 Bf4} 7. Qa4 {[%emt 0:00:52] LiveBook: 7 Games} (7. Ne5 Nxd4 8. Bxb7 Rb8 9. Bc6+ Nxc6 10. Nxc6 Qxd1 11. Rxd1 Rc8 12. Nxa7 Rc7 13. Nb5 Rd7 14. N1c3 Rxd1+ 15. Nxd1 {1-0 (73) Martin Sanchez,C (2427)-Timko,V (2416) ICCF email 2013}) 7... cxd4 {[%emt 0:10:09] [#]} 8. Nxd4 $1 {[%emt 0:01:57]} Qxd4 {[%emt 0:01:41]} 9. Bxc6+ {[%emt 0:00:05]} Bd7 {[%emt 0:00:04]} 10. Bxd7+ {[%emt 0:01:02]} (10. Rd1 $16 Bxc6 {[#]} 11. Qxc6+ $1 {[%mdl 512]} bxc6 12. Rxd4) 10... Qxd7 {[%emt 0:00:04]} 11. Qxc4 {[%emt 0:15:07]} e6 $146 {[%emt 0:01:29]} ({Predecessor:} 11... Rc8 12. Qb3 g6 13. Rd1 Qc6 14. Be3 {1-0 (27) Tiemann,T (2040)-Cubek,C (2024) Baden 2016}) 12. Nc3 {[%emt 0:01:41]} Rc8 {[%emt 0:00:47]} 13. Qb3 {[%emt 0:03:58]} h5 {[%emt 0:12:19]} (13... Bc5 $1 $11) 14. Rd1 {[%emt 0:09:39]} Qc6 {[%emt 0:01:07]} 15. Bg5 {[%emt 0:05:08]} Bc5 {[%emt 0:03:19] [#]} 16. Bxf6 {[%emt 0:11:49]} (16. Rac1 $1 $16) 16... gxf6 {[%emt 0:00:09]} 17. Qb5 {[%emt 0:00:04]} h4 {[%emt 0:02:29]} 18. Qxc6+ {[%emt 0:01:19]} Rxc6 {[%emt 0:00:04]} 19. Ne4 {[%emt 0:00:47]} hxg3 {[%emt 0:00:19]} 20. hxg3 {[%emt 0:00:13]} Ke7 {[%emt 0:03:08]} 21. Nxc5 {[%emt 0:01:17]} Rxc5 {[%emt 0:00:07]} 22. Rac1 {[%emt 0:00:24]} Rhc8 {[%emt 0:00:07]} 23. Rxc5 {[%emt 0:00:22]} Rxc5 {[%emt 0:00:05]} 24. Rd2 {[%emt 0:00:04]} f5 {[%emt 0:01:52]} 25. f4 {[%emt 0:02:53]} f6 {[%emt 0:02:45]} 26. Kf2 {[%emt 0:00:37]} e5 {[%emt 0:00:08]} 27. Kf3 {[%emt 0:06:27]} Ke6 {[%emt 0:01:35]} 28. Kf2 {[%emt 0:01:06]} a5 {[%emt 0:01:11]} 29. Kf3 {[%emt 0:01:48]} Rc4 {[%emt 0:00:35]} 30. Ke3 {[%emt 0:02:00]} b5 {[%emt 0:01:43]} 31. Kf3 {[%emt 0:09:49]} Rc1 {[%emt 0:03:00]} 32. Kf2 {[%emt 0:02:53]} b4 {[%emt 0:00:50]} 33. b3 {[%emt 0:00:59]} e4 {[%emt 0:02:38]} 34. e3 {[%emt 0:05:27]} Ra1 {[%emt 0:00:22]} 35. Kg2 {[%emt 0:04:19]} Kf7 {[%emt 0:00:25]} 36. g4 {[%emt 0:03:50]} fxg4 {[%emt 0:00:28]} 37. f5 {[%emt 0:00:05]} Kg7 {[%emt 0:08:59]} 38. Kg3 {[%emt 0:00:47]} Rg1+ {[%emt 0:00:07]} 39. Kf4 {[%emt 0:00:07]} g3 {[%emt 0:00:16]} 40. Kxe4 {[%emt 0:00:18]} Kh6 {[%emt 0:00:32]} 41. Kf4 {[%emt 0:09:00]} g2 {[%emt 0:05:32]} 42. Kg4 $11 {[%emt 0:03:37]} Kh7 {[%emt 0:06:30]} 43. e4 {[%emt 0:02:02]} Re1 {[%emt 0:00:49]} 44. Rxg2 {[%emt 0:00:01]} Rxe4+ {[%emt 0:00:01]} 45. Kf3 {[%emt 0:00:01]} 1/2-1/2